bitfinex-derivatives/quotes_BNBF0:USTF0_20250523
["timestamp","ask_amount","ask_price","bid_price","bid_amount"]
[1748026934125,1.56546525,666.95,665.93,1.49282924]
[1748026934329,1.56546525,666.94,665.93,1.49282924]
[1748026934626,1.56546525,666.93,665.94,1.49282924]
[1748026934830,1.56546525,666.92,665.94,1.49282924]
[1748026935129,1.0841409,666.91,665.94,1.49282924]
[1748026935330,1.0841409,666.9,665.94,1.49282924]
[1748026935529,1.0841409,666.89,665.94,1.49282924]
[1748026935830,1.155,666.95,665.94,1.49282924]
[1748026935831,1.0841409,666.88,665.94,1.49282924]
[1748026936030,1.155,666.95,665.94,1.49282924]
[1748026936031,1.0841409,666.87,665.94,1.49282924]
[1748026936331,1.08368164,666.86,665.94,1.49282924]
[1748026936531,1.08368164,666.85,665.9,1.49282924]
[1748026936728,1.08368164,666.84,665.9,1.49282924]
[1748026936931,1.08368164,666.83,665.9,1.49282924]
[1748026937132,1.11178524,666.93,665.9,1.49282924]
[1748026937330,1.56495118,666.92,665.9,1.49282924]
[1748026937534,1.56495118,666.91,665.9,1.49282924]
[1748026937733,1.56495118,666.9,665.9,1.49282924]
[1748026937936,1.56495118,666.89,665.9,1.49282924]
[1748026938134,1.56495118,666.88,665.9,1.49282924]
[1748026938433,1.56495118,666.87,665.9,1.49282924]
[1748026938734,1.56499497,666.86,665.9,1.49282924]
[1748026938935,1.56499497,666.85,665.88,1.49282924]
[1748026939130,1.86491699,666.84,665.88,1.49282924]
[1748026939337,1.86492148,666.83,665.88,1.49282924]
[1748026939631,1.56506141,666.82,665.88,1.49282924]
[1748026939834,1.08377411,666.81,665.88,1.49282924]
[1748026940031,1.08377411,666.8,665.88,1.49282924]
[1748026940235,1.08377411,666.79,665.88,1.49282924]
[1748026940435,1.08377411,666.78,665.88,1.49282924]
[1748026940633,1.08377411,666.77,665.88,1.49282924]
[1748026940830,0.29992651,666.83,665.88,1.49282924]
[1748026941030,1.56510972,666.82,665.77,1.49282924]
[1748026941232,1.08383326,666.81,665.77,1.49282924]
[1748026941433,1.08383326,666.8,665.77,1.49282924]
[1748026941730,1.08383326,666.79,665.77,1.49282924]
[1748026941933,1.08383326,666.78,665.77,1.49282924]
[1748026942131,1.08383326,666.77,665.77,1.49282924]
[1748026942334,0.29992651,666.83,665.77,1.49282924]
[1748026942532,1.56507609,666.82,665.77,1.49282924]
[1748026942736,1.08381192,666.81,665.77,1.49282924]
[1748026942936,1.08381192,666.8,665.77,1.49282924]
[1748026943136,1.08381192,666.79,665.77,1.49282924]
[1748026943431,1.08381192,666.78,665.77,1.49282924]
[1748026943631,1.08381192,666.77,665.88,1.49282924]
[1748026943837,0.29992651,666.83,665.88,1.49282924]
[1748026944137,1.56501267,666.82,665.88,1.49282924]
[1748026944435,1.0837661,666.81,665.88,1.49282924]
[1748026944634,1.0837661,666.8,665.88,1.49282924]
[1748026944832,1.0837661,666.79,665.88,1.49282924]
[1748026945031,0.29992651,666.83,665.88,1.49282924]
[1748026945231,1.56495355,666.82,665.88,1.49282924]
[1748026945436,1.08372496,666.81,665.88,1.49282924]
[1748026945632,1.08372496,666.8,665.88,1.49282924]
[1748026945839,0.29992651,666.83,665.88,1.49282924]
[1748026946033,1.08374817,666.82,665.88,1.49282924]
[1748026946241,1.08374817,666.81,665.88,1.49282924]
[1748026946437,1.08374817,666.8,665.88,1.49282924]
[1748026946637,0.29992651,666.83,665.88,1.49282924]
[1748026946938,1.0836717,666.82,665.88,1.49282924]
[1748026947133,1.0836717,666.81,665.88,1.49282924]
[1748026947338,1.0836717,666.8,665.88,1.49282924]
[1748026947539,0.29992651,666.83,665.88,1.49282924]
[1748026947739,1.08383507,666.82,665.88,1.49282924]
[1748026947936,1.08383507,666.81,665.88,1.49282924]
[1748026948233,1.08383507,666.8,665.88,1.49282924]
[1748026948432,1.08383507,666.79,665.88,1.49282924]
[1748026948633,0.29992651,666.83,665.9,1.49282924]
[1748026948936,1.0838675,666.82,665.9,1.49282924]
[1748026949136,1.0838675,666.81,665.9,1.49282924]
[1748026949337,1.0838675,666.8,665.9,1.49282924]
[1748026949534,1.0838675,666.79,665.9,1.49282924]
[1748026949838,0.29992651,666.83,665.9,1.49282924]
[1748026950038,1.08429211,666.82,665.9,1.49282924]
[1748026950239,1.08429211,666.81,665.9,1.49282924]
[1748026950435,1.08429211,666.8,665.9,1.49282924]
[1748026950638,1.08437033,666.79,665.9,1.49282924]
[1748026950839,0.29992651,666.83,665.94,1.49282924]
[1748026951035,1.08432447,666.82,665.94,1.49282924]
[1748026951238,1.08432447,666.81,665.94,1.49282924]
[1748026951436,1.08432447,666.8,665.94,1.49282924]
[1748026951642,1.08432447,666.79,665.94,1.49282924]
[1748026951839,0.29992651,666.83,665.94,1.49282924]
[1748026952038,1.084387,666.82,665.94,1.49282924]
[1748026952237,1.084387,666.81,665.94,1.49282924]
[1748026952537,1.084387,666.8,665.94,1.49282924]
[1748026952742,1.084387,666.79,665.94,1.49282924]
[1748026952938,0.29992651,666.83,665.94,1.49282924]
[1748026953143,1.08464387,666.82,665.97,1.49282924]
[1748026953343,1.08464387,666.81,665.97,1.49282924]
[1748026953542,1.08464387,666.8,665.97,1.49282924]
[1748026953742,1.08464387,666.79,665.97,1.49282924]
[1748026953941,1.08464387,666.78,665.97,1.49282924]
[1748026954141,0.29992651,666.83,665.97,1.49282924]
[1748026954344,1.08476213,666.82,665.97,1.49282924]
[1748026954547,1.08476213,666.81,665.97,1.49282924]
[1748026954846,1.08476213,666.8,665.97,1.49282924]
[1748026955042,1.56656817,666.79,665.97,1.49282924]
[1748026955246,1.08476213,666.78,665.97,1.49282924]
[1748026955442,1.08476213,666.77,665.91,1.49282924]
[1748026955646,1.08476213,666.76,665.91,1.49282924]
[1748026955847,1.08476213,666.75,665.91,1.49282924]
[1748026956047,1.08507197,666.74,665.91,1.49282924]
[1748026956246,0.29992651,666.83,665.91,1.49282924]
[1748026956443,1.56682634,666.82,665.91,1.49282924]
[1748026956648,1.86676185,666.81,665.91,1.49282924]
[1748026956849,1.86676635,666.8,665.91,1.49282924]
[1748026957049,1.56682634,666.79,665.91,1.49282924]
[1748026957244,1.86677534,666.78,665.91,1.49282924]
[1748026957452,1.86677984,666.77,665.91,1.49282924]
[1748026957650,1.86678434,666.76,665.91,1.49282924]
[1748026957850,1.11178524,666.71,665.78,1.49282924]
[1748026958047,1.56682634,666.7,665.78,1.49282924]
[1748026958248,1.56682634,666.69,665.78,1.49282924]
[1748026958552,1.86682034,666.68,665.78,1.49282924]
[1748026958851,1.56682634,666.67,665.78,1.49282924]
[1748026959152,1.56682634,666.66,665.78,1.49282924]
[1748026959451,1.56682634,666.65,665.78,1.49282924]
[1748026959651,1.56682634,666.64,665.78,1.49282924]
[1748026959953,1.56682634,666.64,664.97,3.72647286]
[1748026959954,1.08473937,666.63,665.71,1.49282924]
[1748026960251,1.08473937,666.62,665.71,1.49282924]
[1748026960553,1.08473937,666.61,665.71,1.49282924]
[1748026960753,1.08473937,666.6,665.71,1.49282924]
[1748026961051,1.08473937,666.59,665.71,1.49282924]
[1748026961252,0.299994,666.68,665.71,1.49282924]
[1748026961453,1.56603795,666.67,665.71,1.49282924]
[1748026961753,1.5660369,666.66,665.71,1.49282924]
[1748026962050,1.5660369,666.65,665.71,1.49282924]
[1748026962252,1.8660489,666.64,665.64,1.49282924]
[1748026962455,1.8660534,666.63,665.64,1.49282924]
[1748026962652,1.8660579,666.62,665.64,1.49282924]
[1748026962851,1.8660624,666.61,665.64,1.49282924]
[1748026963054,1.8660669,666.6,665.64,1.49282924]
[1748026963255,1.8660714,666.59,665.64,1.49282924]
[1748026963454,1.8660759,666.58,665.64,1.49282924]
[1748026963652,1.8660804,666.57,665.64,1.49282924]
[1748026963854,1.08444572,666.56,665.64,1.49282924]
[1748026964051,1.08444572,666.55,665.64,1.49282924]
[1748026964254,0.3000435,666.57,665.64,1.49282924]
[1748026964455,1.08374821,666.56,665.64,1.49282924]
[1748026964652,1.08374821,666.55,665.64,1.49282924]
[1748026964853,1.08374821,666.54,665.64,1.49282924]
[1748026965053,0.3000435,666.57,665.55,1.49282924]
[1748026965357,1.08368774,666.56,665.55,1.49282924]
[1748026965557,1.08368774,666.55,665.55,1.49282924]
[1748026965759,1.08368774,666.54,665.55,1.49282924]
[1748026965953,1.08368774,666.53,665.55,1.49282924]
[1748026966156,1.08368774,666.52,665.55,1.49282924]
[1748026966354,0.3000435,666.57,665.55,1.49282924]
[1748026966555,1.08344397,666.56,665.55,1.49282924]
[1748026966754,1.08344397,666.55,665.55,1.49282924]
[1748026966961,1.08344397,666.54,665.55,1.49282924]
[1748026967159,1.08344397,666.53,665.55,1.49282924]
[1748026967460,0.3000435,666.57,665.55,1.49282924]
[1748026967655,1.08327939,666.56,665.55,1.49282924]
[1748026967859,1.08327939,666.55,665.55,1.49282924]
[1748026968154,1.08327939,666.54,665.55,1.49282924]
[1748026968358,1.08327939,666.53,665.55,1.49282924]
[1748026968658,1.08327939,666.52,665.55,1.49282924]
[1748026968858,0.3000435,666.57,665.55,1.49282924]
[1748026969059,1.08304509,666.56,665.54,1.49282924]
[1748026969260,1.08304509,666.55,665.54,1.49282924]
[1748026969457,1.08304509,666.54,665.54,1.49282924]
[1748026969661,1.08304509,666.53,665.54,1.49282924]
[1748026969961,0.3000435,666.57,665.54,1.49282924]
[1748026970161,1.08280791,666.56,665.54,1.49282924]
[1748026970362,1.08280791,666.55,665.54,1.49282924]
[1748026970562,1.08280791,666.54,665.54,1.49282924]
[1748026970863,1.08241208,666.53,665.54,1.49282924]
[1748026971062,0.3000435,666.57,665.54,1.49282924]
[1748026971258,1.08236292,666.56,665.54,1.49282924]
[1748026971463,1.08236292,666.55,665.54,1.49282924]
[1748026971656,1.08236292,666.54,665.54,1.49282924]
[1748026971859,1.08236292,666.53,665.54,1.49282924]
[1748026972059,0.3000435,666.57,665.54,1.49282924]
[1748026972258,1.08219614,666.56,665.54,1.49282924]
[1748026972458,1.08219614,666.55,665.54,1.49282924]
[1748026972759,1.08219614,666.54,665.54,1.49282924]
[1748026972958,1.08219614,666.53,665.54,1.49282924]
[1748026973161,0.3000435,666.57,665.54,1.49282924]
[1748026973363,1.08211809,666.56,665.54,1.49282924]
[1748026973562,1.08211809,666.55,665.54,1.49282924]
[1748026973761,1.08211809,666.54,665.54,1.49282924]
[1748026973960,1.41182874,666.57,665.62,1.49282924]
[1748026974162,1.08121152,666.56,665.62,1.49282924]
[1748026974361,1.08121918,666.55,665.62,1.49282924]
[1748026974563,1.08121918,666.54,665.62,1.49282924]
[1748026974762,1.08121918,666.53,665.62,1.49282924]
[1748026974963,1.41182874,666.57,665.62,1.49282924]
[1748026975165,1.08110357,666.56,665.62,1.49282924]
[1748026975362,1.08110357,666.55,665.62,1.49282924]
[1748026975666,1.08110357,666.54,665.62,1.49282924]
[1748026975872,1.08110357,666.53,665.62,1.49282924]
[1748026976064,1.41182874,666.57,665.62,1.49282924]
[1748026976363,1.08132425,666.56,665.62,1.49282924]
[1748026976564,1.08132425,666.55,665.58,1.49282924]
[1748026976762,1.08132425,666.54,665.58,1.49282924]
[1748026976968,0.3000435,666.57,665.58,1.49282924]
[1748026977169,1.08123948,666.56,665.58,1.49282924]
[1748026977369,1.08123948,666.55,665.58,1.49282924]
[1748026977564,1.08123948,666.54,665.58,1.49282924]
[1748026977770,0.3000435,666.57,665.58,1.49282924]
[1748026977969,1.0811885,666.56,665.58,1.49282924]
[1748026978170,1.0811885,666.55,665.58,1.49282924]
[1748026978371,1.0811885,666.54,665.58,1.49282924]
[1748026978671,0.3000435,666.57,665.58,1.49282924]
[1748026978970,1.08114407,666.56,665.58,1.49282924]
[1748026979170,1.08114407,666.55,665.58,1.49282924]
[1748026979470,1.08114407,666.54,665.58,1.49282924]
[1748026979666,0.3000435,666.57,665.58,1.49282924]
[1748026979872,1.08122708,666.56,665.58,1.49282924]
[1748026980066,1.08122708,666.55,665.58,1.49282924]
[1748026980269,1.08122708,666.54,665.58,1.49282924]
[1748026980469,1.08122708,666.53,665.58,1.49282924]
[1748026980665,0.3000435,666.57,665.58,1.49282924]
[1748026980871,1.08128219,666.56,665.58,1.49282924]
[1748026981075,0.3000435,666.57,665.58,1.49282924]
[1748026983272,0.3000435,666.57,665.47,1.49282924]
[1748026987783,0.3000435,666.57,665.52,1.49282924]
[1748026989983,0.3000435,666.57,665.54,1.49282924]
[1748026991284,1.08067272,666.56,665.54,1.49282924]
[1748026991584,0.3000435,666.57,665.54,1.49282924]
[1748026991784,1.0806762,666.56,665.54,1.49282924]
[1748026991982,0.3000435,666.57,665.54,1.49282924]
[1748026992585,1.08086001,666.56,665.7,1.49282924]
[1748026992779,1.0807869,666.55,665.7,1.49282924]
[1748026992983,1.0807869,666.54,665.7,1.49282924]
[1748026993184,1.0807869,666.53,665.7,1.49282924]
[1748026993479,0.3000435,666.57,665.7,1.49282924]
[1748026993684,1.08092438,666.56,665.7,1.49282924]
[1748026993884,1.08092438,666.55,665.7,1.49282924]
[1748026994080,1.08092438,666.54,665.7,1.49282924]
[1748026994283,1.08092438,666.53,665.7,1.49282924]
[1748026994480,1.08092438,666.52,665.7,1.49282924]
[1748026994679,0.3000435,666.57,665.7,1.49282924]
[1748026994882,1.08104192,666.56,665.7,1.49282924]
[1748026995082,1.08104192,666.55,665.63,1.49282924]
[1748026995284,1.08104192,666.54,665.63,1.49282924]
[1748026995485,0.3000435,666.57,665.63,1.49282924]
[1748026995685,1.08119363,666.56,665.63,1.49282924]
[1748026995879,1.08119363,666.55,665.63,1.49282924]
[1748026996082,0.3000435,666.57,665.63,1.49282924]
[1748026996283,1.08122345,666.56,665.63,1.49282924]
[1748026996579,1.08122345,666.55,665.63,1.49282924]
[1748026996782,0.3000435,666.57,665.63,1.49282924]
[1748026997079,1.08131457,666.56,665.63,1.49282924]
[1748026997282,1.08141884,666.55,665.62,1.49282924]
[1748026997482,0.3000435,666.57,665.62,1.49282924]
[1748026997680,1.08142374,666.56,665.62,1.49282924]
[1748026997880,1.08142374,666.55,665.62,1.49282924]
[1748026998082,0.3000435,666.57,665.62,1.49282924]
[1748026998281,1.08142059,666.56,665.62,1.49282924]
[1748026998483,1.08142059,666.55,665.62,1.49282924]
[1748026998684,1.08142059,666.54,665.62,1.49282924]
[1748026998886,0.3000435,666.57,665.62,1.49282924]
[1748026999088,1.08153604,666.56,665.62,1.49282924]
[1748026999287,1.08153604,666.55,665.62,1.49282924]
[1748026999587,0.3000435,666.57,665.62,1.49282924]
[1748026999786,1.08161868,666.56,665.62,1.49282924]
[1748026999981,1.08161868,666.55,665.62,1.49282924]
[1748027000185,1.08163432,666.54,665.62,1.49282924]
[1748027000386,0.3000435,666.57,665.63,1.49282924]
[1748027000586,1.08180061,666.56,665.63,1.49282924]
[1748027000882,1.08180061,666.55,665.63,1.49282924]
[1748027001090,1.08180061,666.54,665.63,1.49282924]
[1748027001386,0.3000435,666.57,665.63,1.49282924]
[1748027001585,1.08190459,666.56,665.63,1.49282924]
[1748027001884,1.08190459,666.55,665.63,1.49282924]
[1748027002087,1.08190459,666.54,665.63,1.49282924]
[1748027002287,0.3000435,666.57,665.63,1.49282924]
[1748027002489,1.08199046,666.56,665.6,1.49282924]
[1748027002689,1.08199046,666.55,665.6,1.49282924]
[1748027002983,1.08199046,666.54,665.6,1.49282924]
[1748027003186,1.41182874,666.57,665.6,1.49282924]
[1748027003387,1.08214981,666.56,665.6,1.49282924]
[1748027003587,1.08214981,666.55,665.6,1.49282924]
[1748027003789,1.08214981,666.54,665.6,1.49282924]
[1748027003989,1.41182874,666.57,665.6,1.49282924]
[1748027004190,1.08225428,666.56,665.6,1.49282924]
[1748027004388,1.08225428,666.55,665.6,1.49282924]
[1748027004590,1.08225428,666.54,665.6,1.49282924]
[1748027004885,2.19403952,666.53,665.67,1.49282924]
[1748027005092,1.11178524,666.53,665.67,1.49282924]
[1748027005288,1.56265243,666.52,665.67,1.49282924]
[1748027005484,1.11178524,666.53,665.67,1.49282924]
[1748027005485,1.56265243,666.51,665.67,1.49282924]
[1748027005690,1.56265243,666.5,665.67,1.49282924]
[1748027005891,1.56265243,666.49,665.67,1.49282924]
[1748027006192,1.08244522,666.48,665.67,1.49282924]
[1748027006393,1.08313244,666.47,665.67,1.49282924]
[1748027006693,1.08313244,666.46,665.67,1.49282924]
[1748027006990,1.11178524,666.53,665.67,1.49282924]
[1748027007190,1.56369353,666.52,665.67,1.49282924]
[1748027007391,1.56369353,666.51,665.67,1.49282924]
[1748027007591,1.08316521,666.5,665.65,1.49282924]
[1748027007787,1.08316521,666.49,665.65,1.49282924]
[1748027007991,1.08316521,666.48,665.65,1.49282924]
[1748027008185,1.08333158,666.47,665.65,1.49282924]
[1748027008385,1.08333158,666.46,665.65,1.49282924]
[1748027008693,1.11178524,666.52,665.65,1.49282924]
[1748027008889,1.56416401,666.51,665.65,1.49282924]
[1748027009090,1.08349191,666.5,665.65,1.49282924]
[1748027009292,1.08349191,666.49,665.65,1.49282924]
[1748027009591,1.08349191,666.48,665.65,1.49282924]
[1748027009792,1.08349191,666.47,665.65,1.49282924]
[1748027009991,1.08371804,666.46,665.65,1.49282924]
[1748027010187,1.11178524,666.52,665.65,1.49282924]
[1748027010392,1.56448861,666.51,665.65,1.49282924]
[1748027010591,1.08371778,666.5,665.58,1.49282924]
[1748027010786,1.08371778,666.49,665.58,1.49282924]
[1748027011086,1.08371778,666.48,665.58,1.49282924]
[1748027011286,1.08371778,666.47,665.58,1.49282924]
[1748027011490,1.08371778,666.46,665.58,1.49282924]
[1748027011686,1.08371778,666.45,665.58,1.49282924]
[1748027011891,1.314,666.54,665.58,1.49282924]
[1748027012091,1.56521616,666.53,665.58,1.49282924]
[1748027012293,1.56521616,666.52,665.58,1.49282924]
[1748027012492,1.56521616,666.51,665.58,1.49282924]
[1748027012694,1.56521616,666.5,665.58,1.49282924]
[1748027012892,1.56521616,666.49,665.6,1.49282924]
[1748027013091,1.08422219,666.48,665.6,1.49282924]
[1748027013288,1.08422219,666.47,665.6,1.49282924]
[1748027013590,1.08422219,666.46,665.6,1.49282924]
[1748027013791,1.08422219,666.45,665.6,1.49282924]
[1748027014090,1.08422219,666.44,665.6,1.49282924]
[1748027014293,1.08422219,666.43,665.6,1.49282924]
[1748027014591,1.08422219,666.42,665.6,1.49282924]
[1748027014788,1.314,666.54,665.6,1.49282924]
[1748027014991,2.67840458,666.53,665.61,1.49282924]
[1748027015192,1.56661934,666.52,665.61,1.49282924]
[1748027015389,1.08519391,666.51,665.61,1.49282924]
[1748027015594,1.56674174,666.5,665.61,1.49282924]
[1748027015890,1.56696787,666.49,665.61,1.49282924]
[1748027016090,1.56696787,666.48,665.61,1.49282924]
[1748027016306,1.56696787,666.47,665.61,1.49282924]
[1748027016591,1.56696787,666.46,665.61,1.49282924]
[1748027016796,1.56696787,666.45,665.61,1.49282924]
[1748027017091,1.314,666.54,665.61,1.49282924]
[1748027017092,1.56696787,666.44,665.61,1.49282924]
[1748027017296,1.08542004,666.43,665.56,1.49282924]
[1748027017596,1.08542004,666.42,665.56,1.49282924]
[1748027017895,1.08542004,666.41,665.56,1.49282924]
[1748027018096,1.08542004,666.4,665.56,1.49282924]
[1748027018296,1.08542004,666.39,665.56,1.49282924]
[1748027018498,2.42578524,666.54,665.56,1.49282924]
[1748027018698,1.56777134,666.53,665.56,1.49282924]
[1748027018897,1.56777134,666.52,665.56,1.49282924]
[1748027019093,1.56777134,666.51,665.56,1.49282924]
[1748027019292,1.56777134,666.5,665.56,1.49282924]
[1748027019497,1.56777134,666.49,665.56,1.49282924]
[1748027019698,1.56777134,666.48,665.53,1.49282924]
[1748027019902,1.56777134,666.47,665.53,1.49282924]
[1748027020094,1.56777134,666.46,665.53,1.49282924]
[1748027020298,1.56777134,666.45,665.53,1.49282924]
[1748027020498,1.56777134,666.44,665.53,1.49282924]
[1748027020695,1.56777134,666.43,665.53,1.49282924]
[1748027020893,1.08598206,666.42,665.53,1.49282924]
[1748027021097,1.08598206,666.41,665.53,1.49282924]
[1748027021293,1.08598206,666.4,665.53,1.49282924]
[1748027021499,1.08598206,666.39,665.53,1.49282924]
[1748027021694,1.08598206,666.38,665.53,1.49282924]
[1748027021897,1.08598206,666.37,665.53,1.49282924]
[1748027022202,1.08600473,666.36,665.53,1.49282924]
[1748027022502,1.08596185,666.35,665.54,1.49282924]
[1748027022799,1.56773539,666.34,665.54,1.49282924]
[1748027022996,1.56773539,666.33,665.54,1.49282924]
[1748027023195,1.56773539,666.32,665.54,1.49282924]
[1748027023397,1.08596185,666.31,665.54,1.49282924]
[1748027023601,1.08596185,666.3,665.54,1.49282924]
[1748027023799,1.08596185,666.29,665.54,1.49282924]
[1748027023998,1.08596185,666.28,665.54,1.49282924]
[1748027024199,1.08596185,666.27,665.54,1.49282924]
[1748027024399,1.502,666.44,665.54,1.49282924]
[1748027024700,1.11178524,666.35,665.56,1.49282924]
[1748027024896,1.56708695,666.34,665.56,1.49282924]
[1748027025101,1.56708695,666.33,665.56,1.49282924]
[1748027025301,1.56708695,666.32,665.56,1.49282924]
[1748027025501,1.11178524,666.35,665.56,1.49282924]
[1748027025502,1.08547657,666.31,665.56,1.49282924]
[1748027025701,1.08547657,666.3,665.56,1.49282924]
[1748027025899,1.08547657,666.29,665.56,1.49282924]
[1748027026198,1.11178524,666.35,665.56,1.49282924]
[1748027026393,1.56771698,666.34,665.56,1.49282924]
[1748027026612,1.08614796,666.33,665.56,1.49282924]
[1748027026801,1.08614796,666.32,665.56,1.49282924]
[1748027027000,1.08614796,666.31,665.56,1.49282924]
[1748027027200,1.08614796,666.3,665.56,1.49282924]
[1748027027400,1.11178524,666.36,665.56,1.49282924]
[1748027027697,1.08607106,666.35,665.56,1.49282924]
[1748027027900,1.08607106,666.34,665.56,1.49282924]
[1748027028101,1.11178524,666.36,665.56,1.49282924]
[1748027028298,1.08604957,666.35,665.56,1.49282924]
[1748027028602,1.08604957,666.34,665.56,1.49282924]
[1748027028898,1.11178524,666.36,665.56,1.49282924]
[1748027029102,1.0860562,666.35,665.56,1.49282924]
[1748027029305,1.0860562,666.34,665.56,1.49282924]
[1748027029498,1.502,666.44,665.56,1.49282924]
[1748027029702,1.56744239,666.43,665.56,1.49282924]
[1748027029900,1.56744239,666.42,665.56,1.49282924]
[1748027030100,1.56744239,666.41,665.56,1.49282924]
[1748027030301,1.56744239,666.4,665.56,1.49282924]
[1748027030497,1.56744239,666.39,665.56,1.49282924]
[1748027030697,1.08595258,666.38,665.56,1.49282924]
[1748027031001,1.08595258,666.37,665.56,1.49282924]
[1748027031200,1.08595258,666.36,665.56,1.49282924]
[1748027031398,1.08595258,666.35,665.54,1.49282924]
[1748027031602,1.08589473,666.34,665.54,1.49282924]
[1748027031801,1.502,666.44,665.54,1.49282924]
[1748027032000,1.56735801,666.43,665.54,1.49282924]
[1748027032204,1.56735801,666.42,665.54,1.49282924]
[1748027032404,1.56735801,666.41,665.54,1.49282924]
[1748027032605,1.56735801,666.4,665.54,1.49282924]
[1748027032801,1.08589414,666.39,665.54,1.49282924]
[1748027033004,1.08589414,666.38,665.54,1.49282924]
[1748027033203,1.08589414,666.37,665.54,1.49282924]
[1748027033400,1.08589414,666.36,665.54,1.49282924]
[1748027033603,1.08589414,666.35,665.54,1.49282924]
[1748027033805,1.502,666.44,665.54,1.49282924]
[1748027034006,1.56735763,666.43,665.54,1.49282924]
[1748027034198,1.56735763,666.42,665.56,1.49282924]
[1748027034399,1.56735763,666.41,665.56,1.49282924]
[1748027034600,1.56735763,666.4,665.56,1.49282924]
[1748027034804,1.08592381,666.39,665.56,1.49282924]
[1748027035005,1.08592381,666.38,665.56,1.49282924]
[1748027035204,1.08592381,666.37,665.56,1.49282924]
[1748027035406,1.08592381,666.36,665.56,1.49282924]
[1748027035603,1.08591898,666.35,665.56,1.49282924]
[1748027035805,1.502,666.44,665.56,1.49282924]
[1748027036007,1.56733921,666.43,665.56,1.49282924]
[1748027036307,1.56733921,666.42,665.56,1.49282924]
[1748027036507,1.56733921,666.41,665.56,1.49282924]
[1748027036806,1.08592053,666.4,665.56,1.49282924]
[1748027037002,1.08592053,666.39,665.56,1.49282924]
[1748027037208,1.08592053,666.38,665.56,1.49282924]
[1748027037404,1.08591146,666.37,665.56,1.49282924]
[1748027037604,1.502,666.44,665.56,1.49282924]
[1748027037907,1.56734906,666.43,665.56,1.49282924]
[1748027038103,1.08592926,666.42,665.56,1.49282924]
[1748027038306,1.08592926,666.41,665.56,1.49282924]
[1748027038503,1.08592926,666.4,665.56,1.49282924]
[1748027038704,1.08592926,666.39,665.56,1.49282924]
[1748027038910,1.08592926,666.38,665.56,1.49282924]
[1748027039204,1.502,666.44,665.56,1.49282924]
[1748027039404,1.56713742,666.43,665.56,1.49282924]
[1748027039602,1.08573351,666.42,665.56,1.49282924]
[1748027039806,1.08573351,666.41,665.56,1.49282924]
[1748027040007,1.08573351,666.4,665.56,1.49282924]
[1748027040205,1.08573351,666.39,665.56,1.49282924]
[1748027040404,1.08573351,666.38,665.7,1.49282924]
[1748027040704,1.11178524,666.42,665.7,1.49282924]
[1748027040904,1.08551203,666.41,665.7,1.49282924]
[1748027041108,1.08551203,666.4,665.7,1.49282924]
[1748027041311,1.08551203,666.39,665.7,1.49282924]
[1748027041512,1.08551203,666.38,665.7,1.49282924]
[1748027041713,1.11178524,666.42,665.7,1.49282924]
[1748027041917,1.08557073,666.41,665.7,1.49282924]
[1748027042117,1.08557073,666.4,665.7,1.49282924]
[1748027042312,1.08557073,666.39,665.7,1.49282924]
[1748027042518,1.08557073,666.38,665.7,1.49282924]
[1748027042818,1.08568182,666.37,665.7,1.49282924]
[1748027043118,1.11178524,666.43,665.71,1.49282924]
[1748027043312,1.56713057,666.42,665.71,1.49282924]
[1748027043515,1.08570904,666.41,665.71,1.49282924]
[1748027043712,1.08570904,666.4,665.71,1.49282924]
[1748027043915,1.08570904,666.39,665.71,1.49282924]
[1748027044211,1.08570904,666.38,665.71,1.49282924]
[1748027044416,1.08568465,666.37,665.71,1.49282924]
[1748027044612,1.08568465,666.36,665.71,1.49282924]
[1748027044814,1.11178524,666.43,665.71,1.49282924]
[1748027045017,1.11178524,666.41,665.71,1.49282924]
[1748027045220,1.08567721,666.4,665.71,1.49282924]
[1748027048522,1.56739251,666.39,665.71,1.49282924]
[1748027048727,1.08567721,666.38,665.71,1.49282924]
[1748027048926,1.08567721,666.37,665.71,1.49282924]
[1748027049229,1.08567721,666.36,665.71,1.49282924]
[1748027050528,1.08567721,666.36,665.76,1.49282924]
[1748027052933,1.11178524,666.34,665.77,1.49282924]
[1748027054730,1.08568581,666.33,665.77,1.49282924]
[1748027054930,1.11178524,666.34,665.77,1.49282924]
[1748027055130,1.08568724,666.33,665.77,1.49282924]
[1748027055326,1.11178524,666.34,665.77,1.49282924]
[1748027055532,1.08568756,666.33,665.77,1.49282924]
[1748027055734,1.11178524,666.34,665.77,1.49282924]
[1748027055933,1.08571902,666.33,665.77,1.49282924]
[1748027056233,1.11178524,666.34,665.77,1.49282924]
[1748027056733,1.08573479,666.33,665.77,1.49282924]
[1748027056940,1.11178524,666.34,665.77,1.49282924]
[1748027057141,1.08573546,666.33,665.77,1.49282924]
[1748027057341,1.11178524,666.34,665.77,1.49282924]
[1748027060841,1.288,666.37,665.66,1.49282924]
[1748027061043,1.0856001,666.36,665.66,1.49282924]
[1748027061243,1.288,666.37,665.66,1.49282924]
[1748027061444,1.08559476,666.36,665.66,1.49282924]
[1748027061644,1.288,666.37,665.66,1.49282924]
[1748027061841,1.08560823,666.36,665.66,1.49282924]
[1748027062039,1.288,666.37,665.66,1.49282924]
[1748027062344,1.08550904,666.36,665.66,1.49282924]
[1748027062545,1.288,666.37,665.66,1.49282924]